bitfinex/quotes_BTCUSD_20240611
["timestamp","ask_amount","ask_price","bid_price","bid_amount"]
[1718135623932,0.07215996,67535.0,67534.0,0.80317924]
[1718135624133,0.07215996,67535.0,67534.0,0.81317924]
[1718135624310,0.07215996,67535.0,67534.0,0.8029607]
[1718135624760,0.07215996,67535.0,67534.0,0.75913272]
[1718135625289,0.07215996,67535.0,67534.0,0.77913272]
[1718135625515,0.07215996,67535.0,67534.0,0.75913272]
[1718135626094,0.07215996,67535.0,67534.0,0.75978613]
[1718135627802,0.07215996,67535.0,67534.0,0.76978613]
[1718135628619,0.07215996,67535.0,67534.0,1.07572124]
[1718135629028,0.07215996,67535.0,67534.0,1.11953266]
[1718135629444,0.2921975,67538.0,67534.0,0.87045966]
[1718135629653,0.2921975,67538.0,67535.0,0.71092781]
[1718135629871,0.2921975,67538.0,67535.0,1.15514081]
[1718135630059,0.2921975,67538.0,67535.0,1.16668222]
[1718135630252,0.2921975,67538.0,67535.0,1.01058222]
[1718135630873,0.2921975,67538.0,67535.0,1.00983198]
[1718135631715,0.2921975,67538.0,67535.0,1.01030963]
[1718135632333,0.2921975,67538.0,67535.0,1.02030963]
[1718135632777,0.2921975,67538.0,67535.0,1.09370963]
[1718135633197,0.2921975,67538.0,67535.0,1.08670963]
[1718135633415,0.2921975,67538.0,67535.0,0.90780963]
[1718135633616,0.2921975,67538.0,67535.0,0.97930963]
[1718135634009,0.2921975,67538.0,67535.0,0.99330963]
[1718135634796,0.2921975,67538.0,67535.0,0.92180963]
[1718135635022,0.2921975,67538.0,67535.0,0.99330963]
[1718135635197,0.2921975,67538.0,67535.0,1.13792247]
[1718135636931,0.27354958,67536.0,67535.0,1.13792247]
[1718135638833,0.27354958,67536.0,67535.0,1.00430963]
[1718135640013,0.27354958,67536.0,67535.0,0.89498254]
[1718135640217,0.27354958,67536.0,67535.0,1.0073009]
[1718135641204,0.27354958,67536.0,67535.0,1.03010599]
[1718135642063,0.27354958,67536.0,67535.0,1.18620599]
[1718135642479,0.27354958,67536.0,67535.0,1.07388763]
[1718135642696,0.27354958,67536.0,67535.0,1.18664858]
[1718135643118,0.27354958,67536.0,67535.0,1.18664691]
[1718135643732,0.27354958,67536.0,67535.0,1.11514691]
[1718135643948,0.27354958,67536.0,67535.0,1.18664691]
[1718135644573,0.27354958,67536.0,67535.0,1.23043269]
[1718135644747,0.27265052,67536.0,67535.0,1.23043269]
[1718135645344,0.27265052,67536.0,67535.0,1.16384349]
[1718135645538,0.27265052,67536.0,67535.0,1.1866349]
[1718135645740,0.2921975,67538.0,67537.0,0.889289]
[1718135645986,0.29476416,67541.0,67539.0,0.08899]
[1718135646193,0.30553334,67543.0,67542.0,0.648056]
[1718135646561,0.30553334,67543.0,67542.0,0.93233414]
[1718135646745,0.30553334,67543.0,67542.0,0.90586164]
[1718135646965,0.00553334,67543.0,67542.0,0.90586164]
[1718135647438,0.00553334,67543.0,67542.0,0.99331222]
[1718135647638,0.00553334,67543.0,67542.0,1.00919674]
[1718135648089,0.00553334,67543.0,67542.0,1.01719674]
[1718135648302,0.00553334,67543.0,67542.0,2.08583067]
[1718135648629,0.00553334,67543.0,67542.0,1.97560377]
[1718135648968,0.00553334,67543.0,67542.0,2.23836822]
[1718135649185,0.00553334,67543.0,67542.0,2.12890377]
[1718135649398,0.00553334,67543.0,67542.0,2.12889139]
[1718135649584,0.30719459,67545.0,67544.0,1.228747]
[1718135649784,0.30719459,67545.0,67544.0,1.66790348]
[1718135649985,0.30719459,67545.0,67544.0,1.59195912]
[1718135650212,0.30719459,67545.0,67544.0,1.69195912]
[1718135650446,0.30719459,67545.0,67544.0,1.61495912]
[1718135650739,0.30719459,67545.0,67544.0,1.65751201]
[1718135650955,0.00719459,67545.0,67544.0,0.31596857]
[1718135651163,0.00719459,67545.0,67544.0,0.34377166]
[1718135651372,0.00719459,67545.0,67544.0,0.37753648]
[1718135651578,0.00719459,67545.0,67544.0,0.35477166]
[1718135651775,0.00719459,67545.0,67544.0,0.36277166]
[1718135652193,0.00719459,67545.0,67544.0,0.34377166]
[1718135652398,0.00719459,67545.0,67544.0,0.35377166]
[1718135653289,0.02719459,67545.0,67544.0,0.28227166]
[1718135653493,0.26529459,67545.0,67544.0,0.35377166]
[1718135653696,0.26529459,67545.0,67544.0,0.35077166]
[1718135653899,0.26529459,67545.0,67544.0,0.27927166]
[1718135654104,0.26529459,67545.0,67544.0,0.28927166]
[1718135654305,0.26529459,67545.0,67544.0,0.35077166]
[1718135654667,0.26529459,67545.0,67544.0,0.35377166]
[1718135654871,0.24986439,67545.0,67544.0,0.35377166]
[1718135655081,0.24986439,67545.0,67544.0,0.34377166]
[1718135655314,0.24986439,67545.0,67544.0,0.35277166]
[1718135655581,0.24986439,67545.0,67544.0,0.34377166]
[1718135655788,0.24986439,67545.0,67544.0,0.34877166]
[1718135655956,0.24986439,67545.0,67544.0,0.32316445]
[1718135656183,0.24986439,67545.0,67544.0,0.23601071]
[1718135656365,0.24986439,67545.0,67544.0,0.01645971]
[1718135656508,0.24986439,67545.0,67544.0,0.005]
[1718135657157,0.24986439,67545.0,67544.0,0.015]
[1718135657371,0.24986439,67545.0,67544.0,0.09211543]
[1718135657784,0.24986439,67545.0,67544.0,0.11253569]
[1718135657994,0.24986439,67545.0,67544.0,0.09853569]
[1718135658420,0.24986439,67545.0,67544.0,0.10253569]
[1718135658624,0.24986439,67545.0,67544.0,0.10653569]
[1718135659039,0.24986439,67545.0,67544.0,0.10253569]
[1718135659249,0.24986439,67545.0,67544.0,0.17403569]
[1718135659877,0.24986439,67545.0,67544.0,0.27403569]
[1718135660513,0.24986439,67545.0,67544.0,0.27627841]
[1718135662380,0.24986439,67545.0,67544.0,0.20477841]
[1718135662590,0.57532338,67545.0,67544.0,0.20477841]
[1718135662799,0.57532338,67545.0,67544.0,0.11542026]
[1718135663054,0.57532338,67545.0,67544.0,0.104]
[1718135663264,0.67532338,67545.0,67544.0,0.104]
[1718135663701,1.02337238,67545.0,67544.0,0.104]
[1718135663905,1.30988138,67545.0,67544.0,0.1]
[1718135664150,1.39776469,67545.0,67544.0,0.1]
[1718135664420,1.33635101,67545.0,67544.0,0.102]
[1718135664644,1.35393706,67545.0,67544.0,0.1]
[1718135664858,1.23572743,67545.0,67544.0,0.1]
[1718135665067,0.66981937,67545.0,67544.0,0.101]
[1718135665281,0.74131937,67545.0,67544.0,0.101]
[1718135665489,0.74131937,67545.0,67544.0,0.1]
[1718135665715,0.94131937,67545.0,67544.0,0.1]
[1718135665892,0.74131937,67545.0,67544.0,0.1]
[1718135666105,0.66981937,67545.0,67544.0,0.1]
[1718135666318,0.74131937,67545.0,67544.0,0.1]
[1718135666535,0.65981937,67545.0,67544.0,0.1]
[1718135666971,0.35086439,67545.0,67544.0,0.1]
[1718135667191,0.34986439,67545.0,67544.0,0.101]
[1718135667629,0.25086439,67545.0,67544.0,0.102]
[1718135668053,0.39518432,67545.0,67544.0,0.102]
[1718135668301,0.59486273,67545.0,67544.0,0.102]
[1718135668506,0.67636273,67545.0,67544.0,0.101]
[1718135668717,0.97636273,67545.0,67544.0,0.101]
[1718135668923,0.77636273,67545.0,67544.0,0.101]
[1718135669135,0.77536273,67545.0,67544.0,0.1]
[1718135669312,0.70386273,67545.0,67544.0,0.1]
[1718135669522,0.60386273,67545.0,67544.0,0.1]
[1718135670494,0.60486273,67545.0,67544.0,0.1]
[1718135670695,0.60386273,67545.0,67544.0,0.1]
[1718135670944,0.80386273,67545.0,67544.0,0.1]
[1718135671145,0.80486273,67545.0,67544.0,0.1]
[1718135673283,1.20096073,67545.0,67544.0,0.1]
[1718135673529,2.05722073,67545.0,67544.0,0.1]
[1718135674382,2.45231873,67545.0,67544.0,0.04802709]
[1718135674588,0.61493539,67535.0,67518.0,0.43295979]
[1718135674808,0.94074886,67535.0,67515.0,0.0775]
[1718135675018,1.94948486,67535.0,67515.0,0.0775]
[1718135675238,1.81048486,67535.0,67515.0,0.0775]
[1718135676331,1.81048486,67535.0,67513.0,0.4793]
[1718135676332,1.84954986,67535.0,67513.0,0.4793]
[1718135676540,1.51579086,67535.0,67513.0,0.4793]
[1718135676783,2.95820886,67535.0,67513.0,0.4793]
[1718135677012,3.08107188,67535.0,67513.0,0.4793]
[1718135677227,3.18107188,67535.0,67513.0,0.4793]
[1718135677444,2.66453888,67535.0,67534.0,0.001946]
[1718135677860,2.66653888,67535.0,67534.0,0.002946]
[1718135678065,2.65953888,67535.0,67534.0,0.001946]
[1718135678282,2.36895888,67535.0,67534.0,0.001946]
[1718135678569,2.36895793,67535.0,67534.0,0.001946]
[1718135678995,2.29296493,67535.0,67534.0,0.001946]
[1718135679220,1.84517486,67535.0,67534.0,0.001946]
[1718135679443,1.64079086,67535.0,67534.0,0.001946]
[1718135679654,2.05873286,67535.0,67534.0,0.002946]
[1718135679891,2.06573286,67535.0,67534.0,0.002946]
[1718135680351,1.79888586,67535.0,67534.0,0.002946]
[1718135680556,1.82562086,67535.0,67534.0,0.002946]
[1718135680984,1.94848299,67535.0,67534.0,0.002946]
[1718135681189,2.31848299,67535.0,67534.0,0.002946]
[1718135681413,1.94848299,67535.0,67534.0,0.002946]
[1718135682047,1.96591597,67535.0,67534.0,0.002946]
[1718135682250,1.84305384,67535.0,67534.0,0.002946]
[1718135682467,1.96591691,67535.0,67534.0,0.002946]
[1718135684901,2.02735711,67535.0,67534.0,0.002946]
[1718135685319,1.84305384,67535.0,67534.0,0.002946]
[1718135685521,1.96592196,67535.0,67534.0,0.002946]
[1718135685898,1.84305384,67535.0,67534.0,0.002946]
[1718135686477,3.24196117,67535.0,67534.0,0.002946]
[1718135686683,0.01176439,67510.0,67509.0,0.0777]
[1718135686895,0.01176439,67506.0,67505.0,0.2322]
[1718135688199,0.01176439,67510.0,67505.0,0.1553]
[1718135688408,0.01176439,67510.0,67507.0,0.1565]
[1718135688622,0.01176439,67510.0,67509.0,0.2498]
[1718135688800,0.01176439,67510.0,67509.0,0.2398]
[1718135689660,0.01176439,67510.0,67507.0,0.0833]
[1718135689874,0.01176439,67512.0,67508.0,0.1565]
[1718135690101,0.01176439,67512.0,67509.0,0.0833]
[1718135690309,0.01176439,67517.0,67511.0,0.0833]
[1718135690520,0.22025896,67523.0,67512.0,0.1531]
[1718135690521,0.01176439,67520.0,67512.0,0.1531]
[1718135690726,0.07215996,67523.0,67513.0,0.0757]
[1718135690727,0.07215996,67516.0,67513.0,0.0757]
[1718135691456,0.07215996,67523.0,67519.0,0.148106]
[1718135691660,0.07215996,67523.0,67522.0,0.1789]
[1718135691880,0.07215996,67530.0,67523.0,0.0753]
[1718135692098,0.07215996,67530.0,67525.0,0.0753]
[1718135693775,0.07215996,67530.0,67527.0,0.0821]
[1718135694386,0.07415996,67530.0,67527.0,0.0821]
[1718135695082,0.07215996,67530.0,67527.0,0.0821]
[1718135695314,0.07315996,67530.0,67527.0,0.0779609]
[1718135695544,0.07415996,67530.0,67529.0,0.0809]
[1718135695801,0.07415996,67530.0,67529.0,0.236]
[1718135696476,0.07415996,67530.0,67529.0,0.384084]
[1718135696685,0.07415996,67530.0,67529.0,0.39583969]
[1718135696894,0.08492435,67530.0,67529.0,0.39583969]
[1718135697067,0.07315996,67530.0,67529.0,0.43229969]
[1718135697309,0.07415996,67530.0,67529.0,0.43229969]
[1718135697688,0.07315996,67530.0,67529.0,0.43229969]
[1718135697938,0.07315996,67530.0,67529.0,0.40683969]
[1718135698145,0.08492435,67530.0,67529.0,0.41383969]
[1718135698362,0.08492435,67530.0,67529.0,0.26575569]
[1718135700547,0.001,67530.0,67529.0,0.26575569]
[1718135701397,0.001,67530.0,67529.0,0.41383969]
[1718135701824,0.01276439,67530.0,67529.0,0.41383969]
[1718135702034,0.01276439,67530.0,67529.0,0.26575569]
[1718135702250,0.01362439,67530.0,67529.0,0.26575569]
[1718135702469,0.01362439,67530.0,67529.0,0.25875569]
[1718135702942,0.01362439,67530.0,67529.0,0.01775569]
[1718135703167,0.01262439,67530.0,67529.0,0.01775569]
[1718135703371,0.57364432,67530.0,67529.0,0.01775569]
[1718135703595,0.66822475,67530.0,67529.0,0.01775569]
[1718135703811,0.58932475,67530.0,67529.0,0.006]
[1718135704051,0.73840675,67530.0,67529.0,0.017]
[1718135704262,0.73840675,67530.0,67529.0,0.011]
[1718135704437,0.73840675,67530.0,67529.0,0.013]
[1718135704882,0.63282632,67530.0,67529.0,0.002]
[1718135705088,0.01176439,67517.0,67512.0,0.077546]
[1718135705324,0.01176439,67520.0,67514.0,0.0828]
[1718135705535,0.01176439,67522.0,67516.0,0.0832]
[1718135705920,0.01176439,67521.0,67517.0,0.01181048]
[1718135706373,0.01176439,67522.0,67517.0,0.01181048]
[1718135706553,0.01176439,67521.0,67517.0,0.01181048]
[1718135707404,0.01176439,67521.0,67517.0,0.02181048]
[1718135707627,0.01176439,67520.0,67517.0,0.02181048]
[1718135708311,0.07215996,67519.0,67517.0,0.02181048]
[1718135708582,0.07215996,67519.0,67517.0,0.17592048]
[1718135709135,0.07215996,67519.0,67518.0,0.148108]
[1718135709606,0.07215996,67519.0,67518.0,0.15991848]
[1718135709815,0.08392435,67519.0,67518.0,0.15991848]
[1718135710030,0.08392435,67519.0,67518.0,0.01181048]
[1718135710318,0.07215996,67519.0,67518.0,0.01181048]
[1718135710546,0.08492435,67519.0,67518.0,0.01181048]
[1718135711022,0.08492435,67519.0,67517.0,0.006]
[1718135711252,0.01176439,67518.0,67517.0,0.006]
[1718135711490,0.01176439,67518.0,67516.0,0.231312]
[1718135711743,0.01176439,67517.0,67516.0,0.231312]
[1718135712267,0.01076439,67517.0,67516.0,0.231312]
[1718135713766,0.07215996,67519.0,67516.0,0.231312]
[1718135714052,0.07644,67530.0,67518.0,0.0766]
[1718135714053,0.01076439,67526.0,67518.0,0.0766]
[1718135714257,0.07215996,67524.0,67522.0,0.0766]
[1718135714496,0.07215996,67524.0,67523.0,0.19041238]
[1718135714742,0.08292435,67524.0,67523.0,0.1656]
[1718135714944,0.07215996,67524.0,67523.0,0.1656]
[1718135715588,0.00114,67530.0,67523.0,0.1656]
[1718135716002,0.00114,67530.0,67524.0,0.0803]
[1718135716464,0.01190439,67530.0,67524.0,0.0803]
[1718135716761,0.01190439,67530.0,67524.0,0.12298]
[1718135716981,0.00114,67530.0,67524.0,0.12298]
[1718135717198,0.00114,67530.0,67528.0,0.148084]
[1718135717410,0.00114,67530.0,67524.0,0.12298]
[1718135717620,0.00114,67530.0,67529.0,0.376484]
[1718135717825,0.00114,67530.0,67529.0,0.4184004]
[1718135718264,0.00114,67530.0,67529.0,0.376484]
[1718135718437,0.00414,67530.0,67529.0,0.376484]
[1718135718884,0.00114,67530.0,67529.0,0.376484]
[1718135719056,0.00114,67530.0,67529.0,0.378484]
[1718135719295,0.00114,67530.0,67529.0,1.06372293]
[1718135719506,0.00214,67530.0,67529.0,1.12874271]
[1718135719723,0.00214,67530.0,67529.0,1.17255141]
[1718135720146,0.00214,67530.0,67529.0,1.16655141]
[1718135720147,0.00114,67530.0,67529.0,1.16655141]
[1718135720353,0.00114,67530.0,67529.0,1.12274271]
[1718135720561,0.00214,67530.0,67529.0,1.13474271]
[1718135720979,0.00214,67530.0,67529.0,1.18755141]
[1718135721388,0.00214,67530.0,67529.0,1.13474271]
[1718135721808,0.00114,67530.0,67529.0,1.13074271]
[1718135722222,0.00214,67530.0,67529.0,1.14474271]
[1718135724103,0.00214,67530.0,67529.0,1.08572293]
[1718135724323,0.00214,67530.0,67529.0,1.14429229]
[1718135726660,0.00214,67530.0,67529.0,1.15591046]
[1718135727062,0.00214,67530.0,67529.0,1.15551046]
[1718135729795,0.00214,67530.0,67529.0,1.47467946]
[1718135730010,0.00214,67530.0,67529.0,1.75646925]
[1718135730218,0.00214,67530.0,67529.0,1.79083021]
[1718135730458,0.00214,67530.0,67529.0,1.97967419]
[1718135730696,0.00214,67530.0,67529.0,1.96467419]
[1718135730906,0.00214,67530.0,67529.0,2.02390219]
[1718135731123,0.00214,67530.0,67529.0,2.02890219]
[1718135731541,0.00214,67530.0,67529.0,1.94139854]
[1718135731755,0.00214,67530.0,67529.0,2.01490219]
[1718135731756,0.00114,67530.0,67529.0,2.01490219]
[1718135732168,0.00114,67530.0,67529.0,2.02890219]
[1718135733036,0.00114,67530.0,67529.0,1.94139854]
[1718135733472,0.00114,67530.0,67529.0,2.02890219]
[1718135733681,0.00114,67530.0,67529.0,2.42507119]
[1718135733893,0.07215996,67546.0,67545.0,0.444147]
[1718135734109,0.07215996,67546.0,67545.0,0.943197]
[1718135734345,0.07215996,67546.0,67545.0,0.95350262]
[1718135734782,0.07215996,67546.0,67545.0,1.0141446]
[1718135735201,0.07215996,67546.0,67545.0,1.0281446]
[1718135735411,0.07215996,67546.0,67545.0,0.95350262]
[1718135735636,0.07215996,67546.0,67545.0,1.01414442]
[1718135735864,0.07215996,67546.0,67545.0,0.96750262]
[1718135736297,0.07215996,67546.0,67545.0,1.26772255]
[1718135736730,0.32582435,67546.0,67545.0,0.03430562]
[1718135737216,0.32582435,67546.0,67545.0,0.024]
[1718135737637,0.32582435,67546.0,67545.0,0.014]
[1718135738079,0.32582435,67546.0,67535.0,0.14807]
[1718135738288,0.32582435,67546.0,67535.0,0.14767]
[1718135738289,0.07215996,67536.0,67535.0,0.14767]
[1718135739122,0.01076439,67543.0,67542.0,0.148056]
[1718135739337,0.32682435,67546.0,67542.0,0.148056]
[1718135739583,0.32582435,67546.0,67542.0,0.148056]
[1718135739999,0.01076439,67543.0,67542.0,0.148056]
[1718135740211,0.23655996,67546.0,67543.0,0.148053]
[1718135740900,0.07215996,67546.0,67544.0,0.148051]
[1718135741123,0.07215996,67546.0,67545.0,0.148049]
[1718135741555,0.33598917,67547.0,67546.0,0.236897]
[1718135741994,0.33598917,67547.0,67546.0,0.76325323]
[1718135742237,0.33837709,67549.0,67548.0,0.392792]
[1718135742442,0.33837709,67549.0,67548.0,0.77624823]
[1718135742653,0.34932501,67551.0,67549.0,0.1799]
[1718135742867,0.34932501,67551.0,67550.0,0.38120793]
[1718135743082,0.34932501,67551.0,67550.0,0.45067854]
[1718135743960,0.07215996,67552.0,67550.0,0.77761654]
[1718135744194,0.07215996,67552.0,67551.0,0.7720943]
[1718135744405,0.07215996,67552.0,67551.0,0.91641423]
[1718135744849,0.07215996,67552.0,67551.0,0.92564854]
[1718135745069,0.07215996,67552.0,67551.0,0.86541224]
[1718135745299,0.36027293,67553.0,67552.0,0.688852]
[1718135745511,0.36027293,67553.0,67552.0,0.91544482]
[1718135745921,0.36027293,67553.0,67552.0,0.92467913]
[1718135747284,0.36027293,67553.0,67552.0,0.3113912]
[1718135747504,0.37103732,67553.0,67552.0,0.25211831]
[1718135747704,0.36027293,67553.0,67552.0,0.26591831]
[1718135748518,0.36027293,67553.0,67552.0,0.25191831]
[1718135748947,0.36027293,67553.0,67552.0,0.26591831]
[1718135749267,0.36027293,67553.0,67552.0,0.25991831]
[1718135749679,0.36027293,67553.0,67552.0,0.26991831]
[1718135750111,0.36027293,67553.0,67552.0,0.25991831]
[1718135750515,0.36027293,67553.0,67552.0,0.31380014]
[1718135751558,0.36027293,67553.0,67552.0,0.29980014]
[1718135751965,0.36027293,67553.0,67552.0,0.31380014]
[1718135752354,0.36027293,67553.0,67552.0,0.40423824]
[1718135752578,0.36027293,67553.0,67552.0,0.41423824]
[1718135752959,0.36027293,67553.0,67552.0,0.57863824]
[1718135753275,0.36027293,67553.0,67552.0,0.55463824]
[1718135753449,0.36027293,67553.0,67552.0,0.65605896]
[1718135753656,0.36027293,67553.0,67552.0,0.66605896]
[1718135754379,0.36027293,67553.0,67552.0,0.65605896]
[1718135754743,0.36027293,67553.0,67552.0,0.82095896]
[1718135755165,0.36027293,67553.0,67552.0,0.83495896]
[1718135755370,0.36027293,67553.0,67552.0,0.82095896]
[1718135755975,0.36027293,67553.0,67552.0,0.84595896]
[1718135756187,0.36027293,67553.0,67552.0,0.83195896]
[1718135756416,0.36027293,67553.0,67552.0,0.82095896]
[1718135756616,0.36027293,67553.0,67552.0,0.84495896]
[1718135757031,0.36027293,67553.0,67552.0,1.39862696]
[1718135758370,0.0090711,67554.0,67553.0,1.584907]
[1718135758615,0.0090711,67554.0,67553.0,1.98394765]
[1718135758818,0.0090711,67554.0,67553.0,1.99303722]
[1718135759196,0.0090711,67554.0,67553.0,2.10015994]
[1718135759798,0.0090711,67554.0,67553.0,2.00703722]
[1718135760051,0.0090711,67554.0,67553.0,2.20703722]
[1718135760264,0.0090711,67554.0,67553.0,2.31415994]
[1718135760455,0.0090711,67554.0,67553.0,2.13028084]
[1718135760662,0.0090711,67554.0,67553.0,2.17598248]
[1718135760789,0.0090711,67554.0,67553.0,2.09872357]
[1718135760999,0.0090711,67554.0,67553.0,2.05487768]
[1718135761246,0.0090711,67554.0,67553.0,1.86497768]
[1718135761401,0.0090711,67554.0,67553.0,1.95443967]
[1718135761601,0.0090711,67554.0,67553.0,2.00911814]
[1718135761836,0.0090711,67554.0,67553.0,1.99511814]
[1718135762166,0.0090711,67554.0,67553.0,1.65143967]
[1718135762379,0.0090711,67554.0,67553.0,1.18413967]
[1718135762795,0.0090711,67554.0,67553.0,1.18713967]
[1718135763200,0.0090711,67554.0,67553.0,1.18413967]
[1718135763583,0.0090711,67554.0,67553.0,1.19613967]
[1718135764000,0.0090711,67554.0,67553.0,1.20713967]
[1718135764456,0.0090711,67554.0,67553.0,1.22113967]
[1718135765297,0.0090711,67554.0,67553.0,1.17952824]
[1718135765506,0.0090711,67554.0,67553.0,1.00062824]
[1718135765917,0.0090711,67554.0,67553.0,1.16552824]
[1718135766908,0.0090711,67554.0,67553.0,1.17952824]
[1718135767324,0.0090711,67554.0,67553.0,1.27952824]
[1718135767562,0.0090711,67554.0,67553.0,1.58288644]
[1718135767740,0.0090711,67554.0,67553.0,1.78288644]
[1718135767970,0.0090711,67554.0,67553.0,1.98288644]
[1718135768145,0.0090711,67554.0,67553.0,2.43529124]
[1718135768321,0.0090711,67554.0,67553.0,2.54946675]
[1718135768524,0.37122084,67555.0,67554.0,1.088838]
[1718135768759,0.39411668,67560.0,67559.0,1.700987]
[1718135768950,0.46737419,67572.0,67561.0,0.888792]
[1718135769326,0.0040646,67562.0,67561.0,1.21936999]
[1718135769532,0.0040646,67562.0,67561.0,1.31677966]
[1718135769705,0.0040646,67562.0,67561.0,1.41120056]
[1718135769909,0.0040646,67562.0,67561.0,1.2949622]
[1718135770729,0.0040646,67562.0,67561.0,1.3059622]
[1718135770888,0.0040646,67562.0,67561.0,1.26236497]
[1718135771097,0.0040646,67562.0,67561.0,1.32777966]
[1718135771298,0.0040646,67562.0,67561.0,1.26236497]
[1718135771886,0.0040646,67562.0,67561.0,1.51446497]
[1718135772109,0.0040646,67562.0,67561.0,1.52846497]
[1718135772311,0.0040646,67562.0,67561.0,1.58766397]
[1718135772686,0.0040646,67562.0,67561.0,1.88369197]
[1718135773080,0.0040646,67562.0,67561.0,2.08369197]
[1718135774144,0.0040646,67562.0,67561.0,2.09977932]
[1718135774555,0.0040646,67562.0,67561.0,2.23984388]
[1718135774767,0.00365815,67562.0,67561.0,2.37584849]
[1718135774997,0.00365815,67562.0,67561.0,2.26670299]
[1718135775237,0.00365815,67562.0,67561.0,1.54041213]
[1718135775453,0.02411668,67534.0,67533.0,0.148074]
[1718135775662,0.02411668,67531.0,67530.0,0.06546508]
[1718135775875,0.72411668,67531.0,67530.0,0.06546508]
[1718135776086,0.72411668,67531.0,67512.0,0.000946]
[1718135776087,0.7,67516.0,67515.0,0.14366491]
[1718135776341,0.07215996,67533.0,67518.0,0.268108]
[1718135776342,0.7,67519.0,67518.0,0.268108]
[1718135776549,0.5,67519.0,67518.0,0.13472888]
[1718135776764,0.77215996,67519.0,67518.0,0.22357888]
[1718135776978,0.77215996,67519.0,67512.0,0.000946]
[1718135776979,0.02411668,67517.0,67512.0,0.000946]
[1718135777211,0.52411668,67513.0,67512.0,0.000946]
[1718135777458,0.54411668,67513.0,67512.0,0.000946]
[1718135777663,0.91618027,67513.0,67512.0,0.000946]
[1718135777877,0.02411668,67506.0,67493.0,0.08885]
[1718135778095,0.02411668,67506.0,67485.0,0.068662]
[1718135778096,0.02411668,67486.0,67485.0,0.068662]
[1718135778317,0.44145419,67486.0,67485.0,0.009416]
[1718135778532,0.75127412,67486.0,67485.0,0.009416]
[1718135778763,0.4489,67486.0,67485.0,0.009416]
[1718135779014,0.2,67486.0,67485.0,0.009416]
[1718135779255,0.18541668,67494.0,67485.0,0.009416]
[1718135779454,0.0819,67503.0,67486.0,0.14431993]
[1718135779662,0.1613,67509.0,67488.0,0.2239]
[1718135779870,0.1613,67509.0,67493.0,0.01]
[1718135779871,0.02411668,67508.0,67493.0,0.01]
[1718135780076,0.1613,67509.0,67494.0,0.25024497]
[1718135780322,0.1613,67509.0,67497.0,0.1559]
[1718135780531,0.1613,67509.0,67498.0,0.30021993]
[1718135780721,0.1613,67509.0,67498.0,0.34024192]
[1718135781356,0.18541668,67509.0,67498.0,0.34024192]
[1718135781561,0.18541668,67509.0,67485.0,0.019416]
[1718135781562,0.02411668,67502.0,67488.0,0.1559]
[1718135781721,0.02411668,67502.0,67490.0,0.1559]
[1718135781930,0.003,67509.0,67494.0,0.1559]
[1718135782136,0.003,67509.0,67497.0,0.01]
[1718135782298,0.003,67509.0,67505.0,0.01]
[1718135782503,0.003,67509.0,67508.0,0.01]
[1718135782714,0.0846,67529.0,67509.0,0.01]
[1718135782715,0.02411668,67521.0,67509.0,0.01]
[1718135782972,0.02411668,67521.0,67511.0,0.1559]
[1718135783168,0.02411668,67521.0,67512.0,0.15024387]
[1718135783593,0.02411668,67521.0,67513.0,0.00708636]
[1718135783798,0.02411668,67521.0,67514.0,0.00592394]
[1718135783972,0.02411668,67521.0,67515.0,0.00697424]
[1718135784172,0.37,67531.0,67515.0,0.00697424]
[1718135784173,0.02411668,67516.0,67515.0,0.00697424]
[1718135784392,0.02411668,67516.0,67512.0,0.004]
[1718135784599,0.02411668,67513.0,67512.0,0.004]
[1718135784806,0.02411668,67501.0,67487.0,0.148175]
[1718135785008,0.02411668,67501.0,67498.0,0.43295979]
[1718135785216,0.02411668,67501.0,67489.0,0.1559]
[1718135785422,0.02411668,67508.0,67490.0,0.74607973]
[1718135785647,0.02411668,67513.0,67495.0,0.1559]
[1718135785853,0.02411668,67513.0,67499.0,0.1559]
[1718135786058,0.02411668,67513.0,67501.0,0.1559]
[1718135786263,0.02411668,67508.0,67502.0,0.00697424]
[1718135786709,0.02411668,67508.0,67498.0,0.1559]
[1718135786930,0.02411668,67508.0,67503.0,0.00697424]
[1718135787124,0.02411668,67508.0,67499.0,0.15231993]
[1718135787628,0.02411668,67508.0,67500.0,0.00697424]
[1718135787965,0.01911668,67508.0,67500.0,0.02290366]
[1718135788188,0.07215996,67507.0,67501.0,0.08885]
[1718135788937,0.07215996,67507.0,67502.0,0.00697424]
[1718135789136,0.07215996,67507.0,67502.0,0.09582424]
[1718135790210,0.07215996,67507.0,67502.0,0.00697424]
[1718135790634,0.07615996,67507.0,67500.0,0.08885]
[1718135790883,0.07615996,67507.0,67502.0,0.08885]
[1718135791057,0.07215996,67507.0,67502.0,0.08885]
[1718135791468,0.07615996,67507.0,67503.0,0.00697424]
[1718135791669,0.01911668,67505.0,67503.0,0.00697424]
[1718135792021,0.01911668,67505.0,67499.0,0.08885]
[1718135792224,0.07215996,67500.0,67499.0,0.08885]
[1718135792448,0.07215996,67500.0,67485.0,0.009416]
[1718135792449,0.09127664,67500.0,67491.0,0.1559]
[1718135792648,0.07215996,67493.0,67492.0,0.08885]
[1718135793041,0.07215996,67493.0,67489.0,0.08885]
[1718135793249,0.07215996,67493.0,67489.0,0.23316993]
[1718135793655,0.24431668,67498.0,67489.0,0.23316993]
[1718135793822,0.01911668,67498.0,67489.0,0.23316993]
[1718135794048,0.001,67493.0,67492.0,0.009]
[1718135794621,0.001,67493.0,67489.0,0.013]
[1718135794824,0.001,67493.0,67485.0,0.313496]
[1718135795161,0.002,67493.0,67492.0,0.011]
[1718135795504,0.01911668,67496.0,67486.0,0.14431993]
[1718135795727,0.07215996,67491.0,67489.0,0.013]
[1718135795911,0.07215996,67491.0,67489.0,0.023]
[1718135796326,0.07215996,67491.0,67489.0,0.013]
[1718135796953,0.07215996,67491.0,67486.0,0.01]
[1718135797529,0.07215996,67491.0,67484.0,0.009427]
[1718135797858,0.09227664,67491.0,67489.0,0.01]
[1718135798111,0.01911668,67490.0,67489.0,0.02]
[1718135798330,0.22831668,67490.0,67489.0,0.02]
[1718135798500,0.22831668,67490.0,67489.0,0.01]
[1718135799114,0.01911668,67489.0,67484.0,0.009427]
[1718135799349,0.01911668,67489.0,67486.0,0.01]
[1718135799573,0.2092,67490.0,67486.0,0.01]
[1718135799574,0.01911668,67487.0,67486.0,0.01]
[1718135800009,0.01911668,67487.0,67484.0,0.009427]
[1718135800222,0.01911668,67486.0,67484.0,0.009427]
[1718135800431,0.01911668,67485.0,67484.0,0.009427]
[1718135801314,0.06757298,67485.0,67484.0,0.009427]